fUSD/lending_fUSD_20250228
["ID","MTS","AMOUNT","RATE_DAILY","PERIOD"]
[354845357,1740731512275,-713.23,0.00057808,120]
[354845358,1740731512285,-500.0,0.00057808,120]
[354845359,1740731512295,-500.0,0.00057808,120]
[354845360,1740731512304,-500.0,0.00057808,120]
[354845361,1740731512313,-500.0,0.00057808,120]
[354845362,1740731512323,-658.85,0.00057808,120]
[354845363,1740731512332,-562.07,0.00057808,120]
[354845364,1740731512341,-391.14,0.00057808,120]
[354845365,1740731512350,-879.15,0.00057808,120]
[354845366,1740731512360,-500.0,0.00057808,120]
[354845367,1740731512369,-500.0,0.00057808,120]
[354845368,1740731512381,-500.0,0.00057808,120]
[354845369,1740731512390,-500.0,0.00057808,120]
[354845370,1740731512400,-500.0,0.00057808,120]
[354845371,1740731512409,-500.0,0.00057808,120]
[354845372,1740731512418,-494.11,0.00057808,120]
[354845373,1740731512428,-1739.54,0.00057808,120]
[354845374,1740731512437,-500.0,0.00057808,120]
[354845375,1740731512446,-500.0,0.00057808,120]
[354845376,1740731512455,-500.0,0.00057808,120]
[354845377,1740731512465,-500.0,0.00057808,120]
[354845378,1740731512474,-500.0,0.00057808,120]
[354845379,1740731512484,-500.0,0.00057808,120]
[354845380,1740731512493,-500.0,0.00057808,120]
[354845381,1740731512502,-649.65,0.00057808,120]
[354845382,1740731512511,-500.0,0.00057808,120]
[354845383,1740731512521,-500.0,0.00057808,120]
[354845384,1740731512532,-500.0,0.00057808,120]
[354845385,1740731512541,-500.0,0.00057808,120]
[354845386,1740731512552,-500.0,0.00057808,120]
[354845387,1740731512564,-500.0,0.00057808,120]
[354845388,1740731512574,-500.0,0.00057808,120]
[354845389,1740731512585,-500.0,0.00057808,120]
[354845390,1740731512594,-536.68,0.00057808,120]
[354845391,1740731512604,-500.0,0.00057808,120]
[354845392,1740731512613,-500.0,0.00057808,120]
[354845393,1740731512624,-500.0,0.00057808,120]
[354845394,1740731512637,-640.55,0.00057808,120]
[354845395,1740731512646,-500.0,0.00057808,120]
[354845396,1740731512655,-500.0,0.00057808,120]
[354845397,1740731512665,-500.0,0.00057808,120]
[354845398,1740731512675,-500.0,0.00057808,120]
[354845399,1740731512684,-500.0,0.00057808,120]
[354845400,1740731512693,-500.0,0.00057808,120]
[354845401,1740731512703,-500.0,0.00057808,120]
[354845402,1740731512712,-545.24,0.00057808,120]
[354845403,1740731512722,-364.59,0.00057808,120]
[354845404,1740731512731,-201.57,0.00057808,120]
[354845405,1740731512740,-500.0,0.00057808,120]
[354845406,1740731512750,-500.0,0.00057808,120]
[354845407,1740731512760,-500.0,0.00057808,120]
[354845408,1740731512769,-500.0,0.00057808,120]
[354845409,1740731512779,-500.0,0.00057838,120]
[354845410,1740731512792,-209.28081741,0.00057859,120]
[354845411,1740731512801,-207.0,0.0005786,30]
[354845412,1740731512811,-150.0,0.0005787,120]
[354845413,1740731512821,-211.0,0.0005788,30]
[354845414,1740731512830,-206.0,0.0005791,120]
[354845415,1740731512840,-150.0,0.00057912,120]
[354845416,1740731512849,-209.28081741,0.00057923,120]
[354845417,1740731512859,-150.0,0.00057961,120]
[354845418,1740731512868,-209.28081741,0.00057988,120]
[354845419,1740731512878,-20000.0,0.00058,120]
[354845420,1740731512890,-1000000.0,0.00058,120]
[354845421,1740731512899,-1000000.0,0.00058,120]
[354845422,1740731512908,-43658.0,0.00058,120]
[354845423,1740731512917,-1000000.0,0.00058,120]
[354845424,1740731512926,-150.0,0.00058051,120]
[354845425,1740731512936,-209.28081741,0.00058053,120]
[354845426,1740731512945,-150.0,0.00058057,120]
[354845427,1740731512955,-150.0,0.00058068,120]
[354845428,1740731512964,-163.364151,0.00058082,120]
[354845429,1740731512973,-763.319646,0.00058082,120]
[354845430,1740731512982,-329.901669,0.00058082,120]
[354845431,1740731512991,-157.76,0.00058082,120]
[354845432,1740731513001,-268.19,0.00058082,120]
[354845433,1740731513010,-896.23,0.00058082,120]
[354845434,1740731513019,-500.0,0.00058082,120]
[354845435,1740731513028,-436.27663873,0.00058082,120]
[354845436,1740731513038,-200.1398427,0.00058082,120]
[354845437,1740731513047,-500.0,0.00058082,120]
[354845438,1740731513057,-500.0,0.00058082,120]
[354845439,1740731513067,-153.87733665,0.00058082,120]
[354845440,1740731513077,-500.0,0.00058082,120]
[354845441,1740731513086,-500.0,0.00058082,120]
[354845442,1740731513095,-4503.47,0.00058082,120]
[354845443,1740731513104,-500.0,0.00058082,120]
[354845444,1740731513115,-500.0,0.00058082,120]
[354845445,1740731513124,-500.0,0.00058082,120]
[354845446,1740731513138,-500.0,0.00058082,120]
[354845447,1740731513149,-500.0,0.00058082,120]
[354845448,1740731513158,-304.95,0.00058082,120]
[354845449,1740731513167,-500.0,0.00058082,120]
[354845450,1740731513177,-500.0,0.00058082,120]
[354845451,1740731513186,-500.0,0.00058082,120]
[354845452,1740731513197,-500.0,0.00058082,120]
[354845453,1740731513207,-1043.53,0.00058082,120]
[354845454,1740731513217,-520.66,0.00058082,120]
[354845455,1740731513228,-500.0,0.00058082,120]
[354845456,1740731513238,-348.15,0.00058082,120]
[354845457,1740731513248,-500.0,0.00058082,120]
[354845458,1740731513258,-500.0,0.00058082,120]
[354845459,1740731513268,-500.0,0.00058082,120]
[354845460,1740731513279,-500.0,0.00058082,120]
[354845461,1740731513290,-500.0,0.00058082,120]
[354845462,1740731513300,-2655.11,0.00058082,120]
[354845463,1740731513310,-500.0,0.00058082,120]
[354845464,1740731513320,-500.0,0.00058082,120]
[354845465,1740731513330,-1109.58,0.00058082,2]
[354845466,1740731513340,-491.7,0.00058082,120]
[354845467,1740731513349,-500.0,0.00058082,120]
[354845468,1740731513359,-500.0,0.00058082,120]
[354845469,1740731513369,-312.65,0.00058082,120]
[354845470,1740731513378,-1179.36,0.00058082,120]
[354845471,1740731513392,-723.95,0.00058082,120]
[354845472,1740731513401,-1630.06,0.00058082,120]
[354845473,1740731513411,-624.22,0.00058082,120]
[354845474,1740731513421,-500.0,0.00058082,120]
[354845475,1740731513430,-430.3,0.00058082,120]
[354845476,1740731513440,-547.63,0.00058082,120]
[354845477,1740731513449,-500.0,0.00058082,120]
[354845478,1740731513458,-500.0,0.00058082,120]
[354845479,1740731513467,-500.0,0.00058082,120]
[354845480,1740731513476,-500.0,0.00058082,120]
[354845481,1740731513485,-500.0,0.00058082,120]
[354845482,1740731513495,-713.23,0.00058082,120]
[354845483,1740731513504,-500.0,0.00058082,120]
[354845484,1740731513514,-500.0,0.00058082,120]
[354845485,1740731513523,-500.0,0.00058082,120]
[354845486,1740731513533,-500.0,0.00058082,120]
[354845487,1740731513543,-658.85,0.00058082,120]
[354845488,1740731513553,-562.07,0.00058082,120]
[354845489,1740731513568,-879.15,0.00058082,120]
[354845490,1740731513577,-165.64,0.00058082,120]
[354845491,1740731513587,-500.0,0.00058082,120]
[354845492,1740731513596,-500.0,0.00058082,120]
[354845493,1740731513607,-500.0,0.00058082,120]
[354845494,1740731513616,-500.0,0.00058082,120]
[354845495,1740731513626,-367.13,0.00058082,120]
[354845496,1740731513641,-1739.54,0.00058082,120]
[354845497,1740731513651,-500.0,0.00058082,120]
[354845498,1740731513661,-500.0,0.00058082,120]
[354845499,1740731513671,-500.0,0.00058082,120]
[354845500,1740731513681,-500.0,0.00058082,120]
[354845501,1740731513692,-500.0,0.00058082,120]
[354845502,1740731513703,-500.0,0.00058082,120]
[354845503,1740731513712,-500.0,0.00058082,120]
[354845504,1740731513721,-649.65,0.00058082,120]
[354845505,1740731513846,-500.0,0.00058082,120]
[354845506,1740731513856,-500.0,0.00058082,120]
[354845507,1740731513865,-500.0,0.00058082,120]
[354845508,1740731513875,-500.0,0.00058082,120]
[354845509,1740731513888,-500.0,0.00058082,120]
[354845510,1740731513898,-486.11,0.00058082,120]
[354845511,1740731513908,-612.39,0.00058082,120]
[354845512,1740731513918,-158.27,0.00058082,120]
[354845513,1740731513927,-536.68,0.00058082,120]
[354845514,1740731513940,-447.94,0.00058082,120]
[354845515,1740731513954,-500.0,0.00058082,120]
[354845516,1740731513964,-583.42367328,0.00058082,120]
[354845517,1740731513974,-640.55,0.00058082,120]
[354845518,1740731513984,-500.0,0.00058082,120]
[354845519,1740731513994,-500.0,0.00058082,120]
[354845520,1740731514004,-500.0,0.00058082,120]
[354845521,1740731514014,-500.0,0.00058082,120]
[354845522,1740731514023,-500.0,0.00058082,120]
[354845523,1740731514032,-500.0,0.00058082,120]
[354845524,1740731514044,-500.0,0.00058082,120]
[354845525,1740731514053,-545.24,0.00058082,120]
[354845526,1740731514063,-500.0,0.00058082,120]
[354845527,1740731514073,-500.0,0.00058082,120]
[354845528,1740731514083,-500.0,0.00058082,120]
[354845529,1740731514092,-500.0,0.00058082,120]
[354845530,1740731514102,-500.0,0.00058112,120]
[354845531,1740731514112,-600.0,0.00058112,120]
[354845532,1740731514121,-500.0,0.00058112,120]
[354845533,1740731514131,-209.28081741,0.00058117,120]
[354845534,1740731514142,-150.0,0.00058141,120]
[354845535,1740731514152,-209.28081741,0.00058182,120]
[354845536,1740731514162,-150.0,0.00058224,120]
[354845537,1740731514172,-150.0,0.00058231,120]
[354845538,1740731514181,-209.28081741,0.00058246,120]
[354845539,1740731514191,-209.28081741,0.00058311,120]
[354845540,1740731514201,-150.0,0.00058321,120]
[354845541,1740731514211,-763.319646,0.00058356,120]
[354845542,1740731514220,-329.901669,0.00058356,120]
[354845543,1740731514230,-896.23,0.00058356,120]
[354845544,1740731514242,-529.44,0.00058356,120]
[354845545,1740731514251,-329.18326294,0.00058356,120]
[354845546,1740731514261,-500.0,0.00058356,120]
[354845547,1740731514271,-500.0,0.00058356,120]
[354845548,1740731514281,-500.0,0.00058356,120]
[354845549,1740731514291,-4503.47,0.00058356,120]
[354845550,1740731514300,-397.99,0.00058356,120]
[354845551,1740731514311,-500.0,0.00058356,120]
[354845552,1740731514320,-500.0,0.00058356,120]
[354845553,1740731514329,-596.8,0.00058356,120]
[354845554,1740731514339,-500.0,0.00058356,120]
[354845555,1740731514349,-500.0,0.00058356,120]
[354845556,1740731514358,-500.0,0.00058356,120]
[354845557,1740731514367,-500.0,0.00058356,120]
[354845558,1740731514377,-500.0,0.00058356,120]
[354845559,1740731514389,-1043.53,0.00058356,120]
[354845560,1740731514398,-560.97,0.00058356,120]
[354845561,1740731514408,-500.0,0.00058356,120]
[354845562,1740731514417,-500.0,0.00058356,120]
[354845563,1740731514427,-634.90123131,0.00058356,120]
[354845564,1740731514437,-500.0,0.00058356,120]
[354845565,1740731514447,-500.0,0.00058356,120]
[354845566,1740731514456,-2655.11,0.00058356,120]
[354845567,1740731514466,-500.0,0.00058356,120]
[354845568,1740731514475,-194.56382354,0.00058356,120]
[354845569,1740731514484,-1109.58,0.00058356,2]
[354845570,1740731514494,-500.0,0.00058356,120]
[354845571,1740731514504,-500.0,0.00058356,120]
[354845572,1740731514513,-1179.36,0.00058356,120]
[354845573,1740731514523,-723.95,0.00058356,120]
[354845574,1740731514532,-1630.06,0.00058356,120]
[354845575,1740731514541,-624.22,0.00058356,120]
[354845576,1740731514552,-500.0,0.00058356,120]
[354845577,1740731514569,-547.63,0.00058356,120]
[354845578,1740731514578,-279.0,0.00058356,120]
[354845579,1740731514588,-500.0,0.00058356,120]
[354845580,1740731514598,-500.0,0.00058356,120]
[354845581,1740731514608,-500.0,0.00058356,120]
[354845582,1740731514619,-500.0,0.00058356,120]
[354845583,1740731514628,-713.23,0.00058356,120]
[354845584,1740731514642,-500.0,0.00058356,120]
[354845585,1740731514654,-500.0,0.00058356,120]
[354845586,1740731514663,-500.0,0.00058356,120]
[354845587,1740731514673,-500.0,0.00058356,120]
[354845588,1740731514683,-658.85,0.00058356,120]
[354845589,1740731514692,-562.07,0.00058356,120]
[354845590,1740731514702,-879.15,0.00058356,120]
[354845591,1740731514712,-500.0,0.00058356,120]
[354845592,1740731514722,-500.0,0.00058356,120]
[354845593,1740731514734,-292.5367701,0.00058356,120]
[354845594,1740731514743,-500.0,0.00058356,120]
[354845595,1740731514755,-1739.54,0.00058356,120]
[354845596,1740731514766,-500.0,0.00058356,120]
[354845597,1740731514776,-500.0,0.00058356,120]
[354845598,1740731514785,-500.0,0.00058356,120]
[354845599,1740731514795,-647.36,0.00058356,120]
[354845600,1740731514805,-459.36045251,0.00058356,120]
[354845601,1740731514815,-500.0,0.00058356,120]
[354845602,1740731514825,-500.0,0.00058356,120]
[354845603,1740731514834,-500.0,0.00058356,120]
[354845604,1740731514843,-649.65,0.00058356,120]
[354845605,1740731514853,-500.0,0.00058356,120]
[354845606,1740731514862,-500.0,0.00058356,120]
[354845607,1740731514874,-500.0,0.00058356,120]
[354845608,1740731514895,-500.0,0.00058356,120]
[354845609,1740731514909,-536.68,0.00058356,120]
[354845610,1740731514928,-500.0,0.00058356,120]
[354845611,1740731514946,-640.55,0.00058356,120]
[354845612,1740731514960,-500.0,0.00058356,120]
[354845613,1740731514980,-500.0,0.00058356,120]
[354845614,1740731514997,-500.0,0.00058356,120]
[354845615,1740731515016,-500.0,0.00058356,120]
[354845616,1740731515034,-500.0,0.00058356,120]
[354845617,1740731515052,-379.83,0.00058356,120]
[354845618,1740731515069,-500.0,0.00058356,120]
[354845619,1740731515085,-545.24,0.00058356,120]
[354845620,1740731515100,-500.0,0.00058356,120]
[354845621,1740731515118,-500.0,0.00058356,120]
[354845622,1740731515130,-325.95073357,0.00058356,120]
[354845623,1740731515150,-500.0,0.00058356,120]
[354845624,1740731515165,-209.28081741,0.00058376,120]
[354845625,1740731515181,-150.0,0.0005838,120]
[354845626,1740731515195,-500.0,0.00058386,120]
[354845627,1740731515210,-16339.93477092,0.000584,120]
[354845628,1740731515224,-200.0,0.000584,120]
[354845629,1740731515239,-150.0,0.00058411,120]
[354845630,1740731515253,-1061.0,0.00058425,120]
[354845631,1740731515268,-209.28081741,0.0005844,120]
[354845632,1740731515283,-1127.7695838,0.0005846,2]
[354845633,1740731515297,-2393.0848514,0.0005846,2]
[354845634,1740731515312,-151.0,0.00058493,120]
[354845635,1740731515327,-1000000.0,0.000585,120]
[354845636,1740731515342,-1000000.0,0.000585,120]
[354845637,1740731515356,-1000000.0,0.000585,120]
[354845638,1740731515370,-150.0,0.00058501,120]
[354845639,1740731515387,-209.28081741,0.00058505,120]
[354845640,1740731515401,-150.0,0.00058514,120]
[354845641,1740731515415,-150.0,0.00058537,120]
[354845642,1740731515430,-209.28081741,0.0005857,120]
[354845643,1740731515443,-150.0,0.00058592,120]
[354845644,1740731515457,-896.23,0.0005863,120]
[354845645,1740731515471,-500.0,0.0005863,120]
[354845646,1740731515484,-500.0,0.0005863,120]
[354845647,1740731515499,-289.15228317,0.0005863,120]
[354845648,1740731515514,-4503.47,0.0005863,120]
[354845649,1740731515527,-500.0,0.0005863,120]
[354845650,1740731515540,-500.0,0.0005863,120]
[354845651,1740731515554,-645.49,0.0005863,120]
[354845652,1740731515570,-500.0,0.0005863,120]
[354845653,1740731515585,-500.0,0.0005863,120]
[354845654,1740731515598,-500.0,0.0005863,120]
[354845655,1740731515612,-500.0,0.0005863,120]
[354845656,1740731515627,-1043.53,0.0005863,120]
[354845657,1740731515644,-500.0,0.0005863,120]
[354845658,1740731515658,-500.0,0.0005863,120]
[354845659,1740731515672,-500.0,0.0005863,120]
[354845660,1740731515687,-500.0,0.0005863,120]
[354845661,1740731515701,-2655.11,0.0005863,120]
[354845662,1740731515715,-500.0,0.0005863,120]
[354845663,1740731515728,-1109.58,0.0005863,2]
[354845664,1740731515741,-500.0,0.0005863,120]
[354845665,1740731515756,-500.0,0.0005863,120]
[354845666,1740731515769,-1179.36,0.0005863,120]
[354845667,1740731515784,-723.95,0.0005863,120]
[354845668,1740731515797,-1630.06,0.0005863,120]
[354845669,1740731515811,-624.22,0.0005863,120]
[354845670,1740731515825,-500.0,0.0005863,120]
[354845671,1740731515838,-547.63,0.0005863,120]
[354845672,1740731515852,-500.0,0.0005863,120]
[354845673,1740731515866,-500.0,0.0005863,120]
[354845674,1740731515879,-500.0,0.0005863,120]
[354845675,1740731515897,-500.0,0.0005863,120]
[354845676,1740731515910,-713.23,0.0005863,120]
[354845677,1740731515924,-500.0,0.0005863,120]
[354845678,1740731515938,-500.0,0.0005863,120]
[354845679,1740731515952,-500.0,0.0005863,120]
[354845680,1740731515965,-500.0,0.0005863,120]
[354845681,1740731515979,-658.85,0.0005863,120]
[354845682,1740731515993,-562.07,0.0005863,120]
[354845683,1740731516006,-879.15,0.0005863,120]
[354845684,1740731516020,-500.0,0.0005863,120]
[354845685,1740731516033,-373.94,0.0005863,120]
[354845686,1740731516047,-500.0,0.0005863,120]
[354845687,1740731516061,-1739.54,0.0005863,120]
[354845688,1740731516075,-632.6,0.0005863,120]
[354845689,1740731516090,-528.38,0.0005863,120]
[354845690,1740731516105,-500.0,0.0005863,120]
[354845691,1740731516120,-500.0,0.0005863,120]
[354845692,1740731516137,-500.0,0.0005863,120]
[354845693,1740731516151,-500.0,0.0005863,120]
[354845694,1740731516165,-649.65,0.0005863,120]
[354845695,1740731516179,-500.0,0.0005863,120]
[354845696,1740731516194,-500.0,0.0005863,120]
[354845697,1740731516210,-338.22,0.0005863,120]
[354845698,1740731516224,-500.0,0.0005863,120]
[354845699,1740731516239,-536.68,0.0005863,120]
[354845700,1740731516253,-500.0,0.0005863,120]
[354845701,1740731516267,-640.55,0.0005863,120]
[354845702,1740731516280,-500.0,0.0005863,120]
[354845703,1740731516293,-500.0,0.0005863,120]
[354845704,1740731516306,-500.0,0.0005863,120]
[354845705,1740731516320,-533.59,0.0005863,120]
[354845706,1740731516334,-435.92,0.0005863,120]
[354845707,1740731516348,-500.0,0.0005863,120]
[354845708,1740731516362,-545.24,0.0005863,120]
[354845709,1740731516541,-500.0,0.0005863,120]
[354845710,1740731516583,-500.0,0.0005863,120]
[354845711,1740731516594,-457.07534992,0.0005863,120]
[354845712,1740731516604,-209.28081741,0.00058634,120]
[354845713,1740731516614,-500.0,0.0005866,120]
[354845714,1740731516624,-600.0,0.0005866,120]
[354845715,1740731516636,-500.0,0.0005866,120]
[354845716,1740731516645,-641.96,0.00058681,2]
[354845717,1740731516655,-150.0,0.00058682,120]
[354845718,1740731516665,-153.0,0.00058685,120]
[354845719,1740731516674,-150.0,0.00058693,120]
[354845720,1740731516684,-209.28081741,0.00058699,120]
[354845721,1740731516693,-152.0,0.00058741,5]
[354845722,1740731516703,-209.28081741,0.00058764,120]
[354845723,1740731516713,-500.0,0.00058767,120]
[354845724,1740731516723,-150.0,0.00058772,120]
[354845725,1740731516732,-209.28081741,0.00058828,120]
[354845726,1740731516741,-150.0,0.00058849,120]
[354845727,1740731516750,-150.0,0.00058862,120]
[354845728,1740731516759,-209.28081741,0.00058893,120]
[354845729,1740731516769,-11951.0260305,0.000589,120]
[354845730,1740731516777,-24499.7530206,0.000589,14]
[354845731,1740731516786,-896.23,0.00058904,120]
[354845732,1740731516795,-500.0,0.00058904,120]
[354845733,1740731516804,-500.0,0.00058904,120]
[354845734,1740731516813,-4503.47,0.00058904,120]
[354845735,1740731516823,-500.0,0.00058904,120]
[354845736,1740731516832,-500.0,0.00058904,120]
[354845737,1740731516842,-500.0,0.00058904,120]
[354845738,1740731516851,-500.0,0.00058904,120]
[354845739,1740731516861,-500.0,0.00058904,120]
[354845740,1740731516870,-500.0,0.00058904,120]
[354845741,1740731516879,-1043.53,0.00058904,120]
[354845742,1740731516893,-500.0,0.00058904,120]
[354845743,1740731516902,-500.0,0.00058904,120]
[354845744,1740731516912,-500.0,0.00058904,120]
[354845745,1740731516922,-500.0,0.00058904,120]
[354845746,1740731516932,-2655.11,0.00058904,120]
[354845747,1740731516941,-500.0,0.00058904,120]
[354845748,1740731516951,-1109.58,0.00058904,2]
[354845749,1740731516961,-500.0,0.00058904,120]
[354845750,1740731516970,-500.0,0.00058904,120]
[354845751,1740731516980,-1179.36,0.00058904,120]
[354845752,1740731516990,-723.95,0.00058904,120]
[354845753,1740731517000,-1630.06,0.00058904,120]
[354845754,1740731517012,-624.22,0.00058904,120]
[354845755,1740731517022,-500.0,0.00058904,120]
[354845756,1740731517033,-547.63,0.00058904,120]
[354845757,1740731517042,-500.0,0.00058904,120]
[354845758,1740731517051,-473.6,0.00058904,120]
[354845759,1740731517060,-585.14,0.00058904,120]
[354845760,1740731517071,-500.0,0.00058904,120]
[354845761,1740731517082,-713.23,0.00058904,120]
[354845762,1740731517093,-500.0,0.00058904,120]
[354845763,1740731517105,-500.0,0.00058904,120]
[354845764,1740731517115,-500.0,0.00058904,120]
[354845765,1740731517126,-500.0,0.00058904,120]
[354845766,1740731517139,-658.85,0.00058904,120]
[354845767,1740731517148,-562.07,0.00058904,120]
[354845768,1740731517157,-879.15,0.00058904,120]
[354845769,1740731517167,-500.0,0.00058904,120]
[354845770,1740731517176,-500.0,0.00058904,120]
[354845771,1740731517186,-1739.54,0.00058904,120]
[354845772,1740731517195,-500.0,0.00058904,120]
[354845773,1740731517204,-500.0,0.00058904,120]
[354845774,1740731517214,-500.0,0.00058904,120]
[354845775,1740731517223,-500.0,0.00058904,120]
[354845776,1740731517232,-649.65,0.00058904,120]
[354845777,1740731517242,-500.0,0.00058904,120]
[354845778,1740731517252,-474.41,0.00058904,120]
[354845779,1740731517261,-500.0,0.00058904,120]
[354845780,1740731517271,-536.68,0.00058904,120]
[354845781,1740731517281,-500.0,0.00058904,120]
[354845782,1740731517292,-640.55,0.00058904,120]
[354845783,1740731517302,-530.4,0.00058904,120]
[354845784,1740731517311,-500.0,0.00058904,120]
[354845785,1740731517320,-500.0,0.00058904,120]
[354845786,1740731517330,-500.0,0.00058904,120]
[354845787,1740731517340,-545.24,0.00058904,120]
[354845788,1740731517349,-500.0,0.00058904,120]
[354845789,1740731517358,-500.0,0.00058904,120]
[354845790,1740731517368,-150.0,0.00058952,120]
[354845791,1740731517379,-209.28081741,0.00058958,120]
[354845792,1740731517390,-150.0,0.00058971,120]
[354845793,1740731517400,-1215.32,0.00058987,120]
[354845794,1740731517409,-1000000.0,0.00059,120]
[354845795,1740731517419,-4611.5720377,0.00059,120]
[354845796,1740731517428,-1000000.0,0.00059,120]
[354845797,1740731517438,-1000000.0,0.00059,120]
[354845798,1740731517447,-392.7,0.00059,60]
[354845799,1740731517456,-392.7,0.00059,60]
[354845800,1740731517465,-392.7,0.00059,60]
[354845801,1740731517474,-392.7,0.00059,60]
[354845802,1740731517483,-392.7,0.00059,60]
[354845803,1740731517493,-392.7,0.00059,60]
[354845804,1740731517503,-392.7,0.00059,60]
[354845805,1740731517512,-392.7,0.00059,60]
[354845806,1740731517522,-392.7,0.00059,60]
[354845807,1740731517531,-392.7,0.00059,60]
[354845808,1740731517542,-392.7,0.00059,60]
[354845809,1740731517553,-392.7,0.00059,60]
[354845810,1740731517566,-392.7,0.00059,60]
[354845811,1740731517576,-392.7,0.00059,60]
[354845812,1740731517588,-392.7,0.00059,60]
[354845813,1740731517598,-392.7,0.00059,60]
[354845814,1740731517610,-392.7,0.00059,60]
[354845815,1740731517620,-392.7,0.00059,60]
[354845816,1740731517630,-392.7,0.00059,60]
[354845817,1740731517642,-392.7,0.00059,60]
[354845818,1740731517653,-392.7,0.00059,60]
[354845819,1740731517663,-392.7,0.00059,60]
[354845820,1740731517672,-392.7,0.00059,60]
[354845821,1740731517681,-392.7,0.00059,60]
[354845822,1740731517690,-150.0,0.00059005,120]
[354845823,1740731517699,-209.28081741,0.00059022,120]
[354845824,1740731517708,-500.0,0.00059041,120]
[354845825,1740731517718,-150.0,0.00059042,120]
[354845826,1740731517728,-151.0,0.00059068,120]
[354845827,1740731517738,-209.28081741,0.00059087,120]
[354845828,1740731517747,-150.0,0.00059132,120]
[354845829,1740731517757,-209.28081741,0.00059152,120]
[354845830,1740731517766,-150.0,0.00059161,120]
[354845831,1740731517775,-896.23,0.00059178,120]
[354845832,1740731517784,-500.0,0.00059178,120]
[354845833,1740731517794,-500.0,0.00059178,120]
[354845834,1740731517804,-4503.47,0.00059178,120]
[354845835,1740731517814,-500.0,0.00059178,120]
[354845836,1740731517822,-500.0,0.00059178,120]
[354845837,1740731517832,-500.0,0.00059178,120]
[354845838,1740731517841,-500.0,0.00059178,120]
[354845839,1740731517851,-500.0,0.00059178,120]
[354845840,1740731517861,-500.0,0.00059178,120]
[354845841,1740731517871,-1043.53,0.00059178,120]
[354845842,1740731517880,-500.0,0.00059178,120]
[354845843,1740731517892,-500.0,0.00059178,120]
[354845844,1740731517902,-559.84,0.00059178,120]
[354845845,1740731517911,-500.0,0.00059178,120]
[354845846,1740731517921,-2655.11,0.00059178,120]
[354845847,1740731517930,-500.0,0.00059178,120]
[354845848,1740731517939,-1109.58,0.00059178,2]
[354845849,1740731517949,-500.0,0.00059178,120]
[354845850,1740731517958,-500.0,0.00059178,120]
[354845851,1740731517967,-1179.36,0.00059178,120]
[354845852,1740731517976,-723.95,0.00059178,120]
[354845853,1740731517986,-1630.06,0.00059178,120]
[354845854,1740731517995,-624.22,0.00059178,120]
[354845855,1740731518007,-500.0,0.00059178,120]
[354845856,1740731518016,-547.63,0.00059178,120]